﻿Department,Entity, Transaction Date, Expense Type, Expense Area, Supplier Name,Transaction number, Amount
FCDO,CSC,04/04/2023,Secretariat Service Provision,Programme Costs,Scholar,NOM001254,604.06
FCDO,CSC,04/04/2023,Secretariat Service Provision,Programme Costs,Scholar,NOM001254,1310.37
FCDO,CSC,05/04/2023,Scholar Stipend,Award Costs,Scholar,PIN063574,3708
FCDO,CSC,05/04/2023,Scholar Stipend,Award Costs,Scholar,PIN063575,3708
FCDO,CSC,05/04/2023,Advances Repayments,Award Costs,Scholar,PIN063576,1926.51
FCDO,CSC,05/04/2023,Scholar Stipend,Award Costs,Scholar,PIN063577,1295.06
FCDO,CSC,05/04/2023,Scholar Stipend,Award Costs,Scholar,PIN063578,4548
FCDO,CSC,05/04/2023,Scholar Stipend,Award Costs,MasterCard Prepaid Management Services Ltd,PIN063697,3748.61
FCDO,CSC,05/04/2023,Scholar Stipend,Award Costs,MasterCard Prepaid Management Services Ltd,PIN063697,3324.81
FCDO,CSC,06/04/2023,Tuition Fee,Award Costs,Aston University,PIN063504,11600
FCDO,CSC,06/04/2023,Immigration Health Surcharge,Award Costs,Scholar,PIN063505,647.22
FCDO,CSC,06/04/2023,Tuition Fee,Award Costs,The University of Edinburgh,PIN063506,70560
FCDO,CSC,06/04/2023,Tuition Fee,Award Costs,Leeds Beckett University,PIN063507,52666.6
FCDO,CSC,06/04/2023,Tuition Fee,Award Costs,Leeds Beckett University,PIN063508,70101.9
FCDO,CSC,06/04/2023,Tuition Fee,Award Costs,Lancaster University,PIN063509,10500
FCDO,CSC,06/04/2023,Tuition Fee,Award Costs,Lancaster University,PIN063509,59365.56
FCDO,CSC,06/04/2023,Tuition Fee,Award Costs,Liverpool School of Tropical Medicine,PIN063510,155700
FCDO,CSC,06/04/2023,Award Support Costs,Award Costs,Cranfield University,PIN063511,5000
FCDO,CSC,06/04/2023,Award Support Costs,Award Costs,University of Bradford,PIN063516,19918
FCDO,CSC,06/04/2023,Tuition Fee,Award Costs,University of Manchester,PIN063517,18000
FCDO,CSC,06/04/2023,Tuition Fee,Award Costs,University of Manchester,PIN063518,7000
FCDO,CSC,06/04/2023,Tuition Fee,Award Costs,University of Manchester,PIN063519,18000
FCDO,CSC,06/04/2023,Scholar Allowances,Award Costs,Scholar,PIN063560,2394
FCDO,CSC,06/04/2023,Scholar Allowances,Award Costs,Scholar,PIN063561,1360.55
FCDO,CSC,06/04/2023,Scholar Allowances,Award Costs,Scholar,PIN063561,911.6
FCDO,CSC,06/04/2023,Scholar Allowances,Award Costs,Scholar,PIN063562,837.6
FCDO,CSC,06/04/2023,Scholar Allowances,Award Costs,Scholar,PIN063563,1364.92
FCDO,CSC,06/04/2023,Scholar Allowances,Award Costs,Scholar,PIN063563,1364.92
FCDO,CSC,06/04/2023,Scholar Allowances,Award Costs,Scholar,PIN063564,1892.1
FCDO,CSC,06/04/2023,Scholar Stipend,Award Costs,Scholar,PIN063565,1096.41
FCDO,CSC,06/04/2023,Scholar Stipend,Award Costs,Scholar,PIN063566,618
FCDO,CSC,06/04/2023,Scholar Stipend,Award Costs,Scholar,PIN063568,2472
FCDO,CSC,06/04/2023,Scholar Stipend,Award Costs,Scholar,PIN063569,618
FCDO,CSC,06/04/2023,Scholar Stipend,Award Costs,Scholar,PIN063570,618
FCDO,CSC,06/04/2023,Scholar Stipend,Award Costs,Scholar,PIN063572,1779.04
FCDO,CSC,06/04/2023,Scholar Allowances,Award Costs,Scholar,PIN063573,529
FCDO,CSC,06/04/2023,Scholar Stipend,Award Costs,Scholar,PIN063573,618
FCDO,CSC,11/04/2023,Scholar Stipend,Award Costs,MasterCard Prepaid Management Services Ltd,PIN063698,4177.63
FCDO,CSC,14/04/2023,Scholar Stipend,Award Costs,Scholar,PIN063589,1804.5
FCDO,CSC,14/04/2023,Scholar Stipend,Award Costs,Scholar,PIN063591,3708
FCDO,CSC,19/04/2023,Secretariat Service Provision,Programme Costs,Scholar,PIN063595,3452.26
FCDO,CSC,19/04/2023,Scholar Stipend,Award Costs,MasterCard Prepaid Management Services Ltd,PIN063701,3708
FCDO,CSC,21/04/2023,Award Support Costs,Award Costs,The University of Nottingham,PIN063596,1300
FCDO,CSC,21/04/2023,Tuition Fee,Award Costs,University of Sheffield,PIN063599,18000
FCDO,CSC,21/04/2023,Scholar Allowances,Award Costs,Scholar,PIN063600,600
FCDO,CSC,21/04/2023,Tuition Fee,Award Costs,University of Bradford,PIN063601,17544
FCDO,CSC,21/04/2023,Award Support Costs,Award Costs,Kings College London,PIN063603,3600
FCDO,CSC,21/04/2023,Tuition Fee,Award Costs,Kings College London,PIN063603,5000
FCDO,CSC,21/04/2023,Award Support Costs,Award Costs,The University of Salford,PIN063605,800
FCDO,CSC,21/04/2023,Award Support Costs,Award Costs,The University of Salford,PIN063605,800
FCDO,CSC,21/04/2023,Award Support Costs,Award Costs,The University of Salford,PIN063605,800
FCDO,CSC,21/04/2023,Award Support Costs,Award Costs,The University of Salford,PIN063605,800
FCDO,CSC,21/04/2023,Award Support Costs,Award Costs,The University of Salford,PIN063605,800
FCDO,CSC,21/04/2023,Award Support Costs,Award Costs,The University of Salford,PIN063605,3000
FCDO,CSC,21/04/2023,Award Support Costs,Award Costs,The University of Salford,PIN063605,3000
FCDO,CSC,21/04/2023,Award Support Costs,Award Costs,The University of Salford,PIN063605,3000
FCDO,CSC,21/04/2023,Award Support Costs,Award Costs,The University of Salford,PIN063605,3000
FCDO,CSC,21/04/2023,Award Support Costs,Award Costs,The University of Salford,PIN063605,3000
FCDO,CSC,21/04/2023,Scholar Stipend,Award Costs,Scholar,PIN063609,1935.2
FCDO,CSC,21/04/2023,Scholar Stipend,Award Costs,Scholar,PIN063610,558.36
FCDO,CSC,21/04/2023,Tuition Fee,Award Costs,Scholar,PIN063614,11200
FCDO,CSC,21/04/2023,Commission Meetings,Admin Costs,Scholar,PIN063616,3000
FCDO,CSC,21/04/2023,Award Support Costs,Award Costs,Queen Mary University of London,PIN063617,3500
FCDO,CSC,28/04/2023,Scholar Allowances,Award Costs,University of Leicester,PIN063621,1119
FCDO,CSC,28/04/2023,Tuition Fee,Award Costs,University of Manchester,PIN063625,5331.6
FCDO,CSC,28/04/2023,Scholar Allowances,Award Costs,Scholar,PIN063627,600
FCDO,CSC,28/04/2023,Tuition Fee,Award Costs,The University of Birmingham,PIN063628,18000
FCDO,CSC,28/04/2023,Tuition Fee,Award Costs,University of Manchester,PIN063629,5331.6
FCDO,CSC,28/04/2023,Tuition Fee,Award Costs,The University of Birmingham,PIN063630,18000
FCDO,CSC,28/04/2023,Tuition Fee,Award Costs,University of Liverpool,PIN063631,6680
FCDO,CSC,28/04/2023,Scholar Allowances,Award Costs,Scholar,PIN063634,600
FCDO,CSC,28/04/2023,Tuition Fee,Award Costs,The University of Warwick,PIN063635,1500
FCDO,CSC,28/04/2023,Tuition Fee,Award Costs,University of Manchester,PIN063636,5331.6
FCDO,CSC,28/04/2023,Award Support Costs,Award Costs,University of Oxford,PIN063637,5000
FCDO,CSC,28/04/2023,Award Support Costs,Award Costs,Loughborough University,PIN063638,5000
FCDO,CSC,28/04/2023,Tuition Fee,Award Costs,University of Exeter,PIN063639,800
FCDO,CSC,28/04/2023,Award Support Costs,Award Costs,University of Glasgow,PIN063640,5000
FCDO,CSC,28/04/2023,Tuition Fee,Award Costs,University of Liverpool,PIN063641,14146
FCDO,CSC,28/04/2023,Tuition Fee,Award Costs,University of Liverpool,PIN063642,16280
FCDO,CSC,28/04/2023,Tuition Fee,Award Costs,University of Liverpool,PIN063643,18000
FCDO,CSC,28/04/2023,Award Support Costs,Award Costs,University of Liverpool,PIN063644,5000
FCDO,CSC,28/04/2023,Tuition Fee,Award Costs,University of Liverpool,PIN063644,16167
FCDO,CSC,28/04/2023,Award Support Costs,Award Costs,University of Manchester,PIN063645,7094
FCDO,CSC,28/04/2023,Award Support Costs,Award Costs,University of Manchester,PIN063646,5000
FCDO,CSC,28/04/2023,Tuition Fee,Award Costs,University of Manchester,PIN063647,5331.6
FCDO,CSC,28/04/2023,Tuition Fee,Award Costs,Manchester Metropolitan University,PIN063649,17200
FCDO,CSC,28/04/2023,Tuition Fee,Award Costs,The University of Leeds,PIN063650,18000
FCDO,CSC,28/04/2023,Scholar Allowances,Award Costs,Ardour Healthcare,PIN063651,2912
FCDO,CSC,28/04/2023,Scholar Allowances,Award Costs,Ardour Healthcare,PIN063652,2912
FCDO,CSC,28/04/2023,Award Support Costs,Award Costs,University of Leicester,PIN063653,4200
FCDO,CSC,28/04/2023,Tuition Fee,Award Costs,The Cambridge Commonwealth Trust,PIN063654,18000
FCDO,CSC,28/04/2023,Award Support Costs,Award Costs,University of Oxford,PIN063655,5000
FCDO,CSC,28/04/2023,Scholar Allowances,Award Costs,The University of Warwick,PIN063656,1800
FCDO,CSC,28/04/2023,Scholar Allowances,Award Costs,The University of Warwick,PIN063656,1600
FCDO,CSC,28/04/2023,Award Support Costs,Award Costs,University of Bath,PIN063659,5233
FCDO,CSC,28/04/2023,Award Support Costs,Award Costs,Queens University Belfast,PIN063661,10000
FCDO,CSC,28/04/2023,Tuition Fee,Award Costs,Queens University Belfast,PIN063661,16480.2
FCDO,CSC,28/04/2023,Award Support Costs,Award Costs,Queens University Belfast,PIN063662,12000
FCDO,CSC,28/04/2023,Tuition Fee,Award Costs,Queens University Belfast,PIN063662,16480.2
FCDO,CSC,28/04/2023,Award Support Costs,Award Costs,Scholar,PIN063663,2500
FCDO,CSC,28/04/2023,Tuition Fee,Award Costs,Scholar,PIN063663,10916
FCDO,CSC,28/04/2023,Scholar Allowances,Award Costs,Scholar,PIN063664,600
FCDO,CSC,28/04/2023,Award Support Costs,Award Costs,Queens University Belfast,PIN063665,10363.74
FCDO,CSC,28/04/2023,Tuition Fee,Award Costs,Queens University Belfast,PIN063665,16480.2
FCDO,CSC,28/04/2023,Scholar Allowances,Award Costs,Scholar,PIN063667,500
FCDO,CSC,28/04/2023,Tuition Fee,Award Costs,University of Manchester,PIN063668,5331.6
FCDO,CSC,28/04/2023,Tuition Fee,Award Costs,University of Manchester,PIN063669,5331.6
FCDO,CSC,28/04/2023,Tuition Fee,Award Costs,University of Manchester,PIN063670,5331.6
FCDO,CSC,28/04/2023,Tuition Fee,Award Costs,Queen Mary University of London,PIN063673,100000
FCDO,CSC,28/04/2023,Scholar Stipend,Award Costs,Scholar,PIN063675,2274
FCDO,CSC,28/04/2023,Tuition Fee,Award Costs,Oxford Brookes University,PIN063676,6360
FCDO,CSC,28/04/2023,Tuition Fee,Award Costs,Oxford Brookes University,PIN063677,7850
FCDO,CSC,28/04/2023,Tuition Fee,Award Costs,Oxford Brookes University,PIN063678,7850
FCDO,CSC,28/04/2023,Tuition Fee,Award Costs,Oxford Brookes University,PIN063679,7950
FCDO,CSC,28/04/2023,Scholar Allowances,Award Costs,Scholar,PIN063681,1269.18
FCDO,CSC,28/04/2023,Scholar Allowances,Award Costs,Scholar,PIN063681,850.38
FCDO,CSC,28/04/2023,Scholar Allowances,Award Costs,Scholar,PIN063682,685.1
FCDO,CSC,28/04/2023,Scholar Allowances,Award Costs,Scholar,PIN063683,724.06
FCDO,CSC,28/04/2023,Scholar Allowances,Award Costs,Scholar,PIN063684,798
FCDO,CSC,28/04/2023,Scholar Allowances,Award Costs,Scholar,PIN063684,798
FCDO,CSC,28/04/2023,Scholar Stipend,Award Costs,Scholar,PIN063685,1702.98
FCDO,CSC,28/04/2023,Scholar Stipend,Award Costs,Scholar,PIN063687,699.2
FCDO,CSC,28/04/2023,Scholar Stipend,Award Costs,Scholar,PIN063688,3358.85
FCDO,CSC,28/04/2023,Programme VAT,Programme Costs,Association of Commonwealth Univs,PIN063694,59000
FCDO,CSC,28/04/2023,Administration Fee,Admin Costs,Association of Commonwealth Univs,PIN063694,295000
FCDO,CSC,28/04/2023,Admin VAT,Admin Costs,Association of Commonwealth Univs,PIN063694,13700
FCDO,CSC,28/04/2023,Administration Fee,Admin Costs,Association of Commonwealth Univs,PIN063694,68500
FCDO,CSC,28/04/2023,Admin VAT,Admin Costs,Association of Commonwealth Univs,PIN063694,15000
FCDO,CSC,28/04/2023,Administration Fee,Admin Costs,Association of Commonwealth Univs,PIN063694,75000
FCDO,CSC,28/04/2023,Admin VAT,Admin Costs,Association of Commonwealth Univs,PIN063694,1350
FCDO,CSC,28/04/2023,Administration Fee,Admin Costs,Association of Commonwealth Univs,PIN063694,6750
FCDO,CSC,28/04/2023,Admin VAT,Admin Costs,Association of Commonwealth Univs,PIN063694,2100
FCDO,CSC,28/04/2023,Administration Fee,Admin Costs,Association of Commonwealth Univs,PIN063694,10500
FCDO,CSC,28/04/2023,Admin VAT,Admin Costs,Association of Commonwealth Univs,PIN063694,7800
FCDO,CSC,28/04/2023,Administration Fee,Admin Costs,Association of Commonwealth Univs,PIN063694,39000
FCDO,CSC,28/04/2023,Admin VAT,Admin Costs,Association of Commonwealth Univs,PIN063694,3700
FCDO,CSC,28/04/2023,Administration Fee,Admin Costs,Association of Commonwealth Univs,PIN063694,18500
FCDO,CSC,28/04/2023,Admin VAT,Admin Costs,Association of Commonwealth Univs,PIN063694,10050
FCDO,CSC,28/04/2023,Administration Fee,Admin Costs,Association of Commonwealth Univs,PIN063694,50250
FCDO,CSC,28/04/2023,Admin VAT,Admin Costs,Association of Commonwealth Univs,PIN063694,15150
FCDO,CSC,28/04/2023,Administration Fee,Admin Costs,Association of Commonwealth Univs,PIN063694,75750
